bitfinex/quotes_ETHUSD_20240710
["timestamp","ask_amount","ask_price","bid_price","bid_amount"]
[1720631178337,0.35405028,3124.0,3123.6,0.97169058]
[1720631178658,1.184,3124.2,3123.6,0.97169058]
[1720631178659,0.35414288,3123.9,3123.6,0.97169058]
[1720631178823,1.184,3124.2,3123.6,0.97169058]
[1720631179029,0.354128,3124.1,3123.6,0.08243419]
[1720631179360,0.354128,3124.0,3123.6,0.08243419]
[1720631179559,0.354128,3123.9,3123.6,0.08243419]
[1720631179785,1.184,3124.2,3123.6,0.08243419]
[1720631179948,0.35415487,3124.1,3123.6,0.08243419]
[1720631180154,0.35415487,3124.0,3123.6,0.08243419]
[1720631180334,1.184,3124.2,3123.6,0.08243419]
[1720631180335,0.35415487,3123.9,3123.6,0.08243419]
[1720631180523,1.184,3124.2,3123.6,0.08243419]
[1720631180728,0.35413444,3124.1,3123.6,0.08243419]
[1720631180966,0.35413444,3124.0,3123.8,2.3382]
[1720631181267,0.33520563,3124.5,3123.9,0.08155662]
[1720631181567,1.53804487,3124.4,3123.9,0.08155662]
[1720631181782,0.35404487,3124.3,3123.9,0.08155662]
[1720631181926,1.184,3124.2,3123.9,0.08155662]
[1720631182135,0.35404487,3124.1,3123.9,0.08155662]
[1720631182767,1.184,3124.4,3123.9,0.08155662]
[1720631182768,0.35473997,3124.0,3123.9,0.08155662]
[1720631183355,0.33520563,3124.5,3123.9,0.34885062]
[1720631183594,0.3550747,3124.4,3124.1,1.184]
[1720631183733,0.33520563,3124.5,3124.2,0.06400986]
[1720631184076,0.35504128,3124.4,3124.2,0.06400986]
[1720631184278,0.33520563,3124.5,3124.3,0.08136553]
[1720631184574,0.33520563,3124.5,3124.2,0.06400986]
[1720631184575,0.35495743,3124.4,3123.9,1.184]
[1720631184907,0.35495743,3124.3,3124.0,0.35222]
[1720631185116,0.33520563,3124.5,3124.0,0.35222]
[1720631185288,0.35525532,3124.4,3124.0,0.35222]
[1720631185486,0.33520563,3124.5,3124.0,0.35222]
[1720631185487,0.35517018,3124.3,3124.0,0.35222]
[1720631185687,0.35517018,3124.2,3123.8,2.3382]
[1720631186010,1.184,3124.4,3123.8,2.3382]
[1720631186011,1.184,3124.4,3123.8,5.3382]
[1720631186304,0.3550747,3124.3,3123.8,5.3382]
[1720631186507,0.3550747,3124.2,3123.8,5.3382]
[1720631186813,0.33520563,3124.5,3123.9,1.16989297]
[1720631187010,0.35520814,3124.4,3123.9,1.16989297]
[1720631187175,0.35520814,3124.3,3123.9,1.16989297]
[1720631187369,0.33520563,3124.5,3123.9,1.16989297]
[1720631187714,0.35526557,3124.4,3124.0,0.6508093]
[1720631188016,0.35526557,3124.3,3124.1,2.3725]
[1720631188187,0.33520563,3124.5,3124.1,2.3725]
[1720631188502,0.35543284,3124.4,3124.1,2.3725]
[1720631188704,0.35543284,3124.3,3124.1,2.3725]
[1720631188912,0.35538659,3124.2,3124.1,2.3725]
[1720631189205,0.35533309,3124.2,3124.1,2.3725]
[1720631190182,0.35533309,3124.2,3123.8,3.0]
[1720631190383,0.35533309,3124.1,3123.8,4.16975297]
[1720631190590,0.35533309,3124.0,3123.8,4.16975297]
[1720631190773,0.78104506,3124.4,3123.8,4.16975297]
[1720631190974,0.35533706,3124.3,3123.8,4.16975297]
[1720631191169,0.33520563,3124.5,3123.8,4.16975297]
[1720631191170,0.35533706,3124.2,3123.8,4.16975297]
[1720631191406,0.35533706,3124.1,3123.8,4.16975297]
[1720631191610,0.33520563,3124.5,3123.9,1.05304827]
[1720631191776,0.35545807,3124.4,3123.9,1.05304827]
[1720631192111,0.35545807,3124.3,3123.9,1.05304827]
[1720631192320,0.35545807,3124.2,3123.8,3.0]
[1720631192485,0.35545807,3124.1,3123.8,3.0]
[1720631192689,0.33520563,3124.5,3123.9,2.3677]
[1720631192891,0.35542207,3124.4,3123.9,2.3677]
[1720631193082,0.35542207,3124.3,3124.0,0.54317105]
[1720631193273,0.35542207,3124.2,3124.0,0.54317105]
[1720631193478,0.33520563,3124.5,3124.0,0.54317105]
[1720631193696,0.35540513,3124.4,3124.0,0.54317105]
[1720631193874,0.35540513,3124.3,3124.0,0.54317105]
[1720631194087,0.35540513,3124.2,3124.0,0.54317105]
[1720631194286,0.33520563,3124.5,3124.0,0.54317105]
[1720631194490,0.35547672,3124.4,3124.0,0.54317105]
[1720631194689,0.35547672,3124.3,3124.0,0.54317105]
[1720631194935,0.35547672,3124.2,3124.0,0.54317105]
[1720631195228,0.33520563,3124.5,3124.0,0.54317105]
[1720631195529,0.35545529,3124.4,3124.0,0.54317105]
[1720631195734,0.35545529,3124.3,3124.0,0.54317105]
[1720631195897,0.35545529,3124.2,3124.1,0.08134251]
[1720631196097,0.35545529,3124.4,3124.1,0.08134251]
[1720631196399,0.35545529,3124.3,3124.1,0.08134251]
[1720631196723,0.35545529,3124.2,3124.1,0.38056387]
[1720631198621,0.33520563,3124.5,3124.1,0.38056387]
[1720631198795,0.35549443,3124.4,3124.1,0.38056387]
[1720631198996,0.35549443,3124.3,3124.1,0.38056387]
[1720631199250,0.33520563,3124.5,3124.1,0.38056387]
[1720631199410,0.35550345,3124.4,3124.2,2.44770462]
[1720631199740,0.33520563,3124.5,3124.2,2.46496681]
[1720631199741,0.35550345,3124.3,3124.2,2.46496681]
[1720631199932,0.35550345,3124.4,3124.2,2.46496681]
[1720631201633,0.35550345,3124.4,3124.2,0.08126681]
[1720631201833,0.35550345,3124.4,3123.9,2.4088]
[1720631202046,0.35550345,3124.4,3124.3,0.08121072]
[1720631202349,0.35550345,3124.4,3123.9,2.4088]
[1720631202497,0.35550345,3124.4,3124.3,0.08121072]
[1720631202697,0.35550345,3124.4,3123.9,2.4088]
[1720631202910,0.35550345,3124.4,3124.3,0.08121072]
[1720631203508,0.35550345,3124.4,3123.9,2.4088]
[1720631203709,0.35550345,3124.4,3124.3,0.08121072]
[1720631203916,0.35550345,3124.4,3123.9,2.4088]
[1720631204426,0.35550345,3124.4,3124.0,0.08137901]
[1720631207711,0.35550345,3124.4,3123.8,3.0]
[1720631207916,0.35550345,3124.4,3124.1,0.08132291]
[1720631208247,0.35550345,3124.4,3124.2,0.08126681]
[1720631208405,0.35550345,3124.4,3123.8,3.0]
[1720631208605,0.35550345,3124.4,3123.9,0.08140769]
[1720631211344,0.35550345,3124.4,3123.9,1.09781961]
[1720631213819,0.35550345,3124.4,3123.9,0.08140769]
[1720631218907,0.35550345,3124.4,3124.0,1.2480132]
[1720631219150,0.35550345,3124.4,3124.1,1.184]
[1720631219508,0.35550345,3124.4,3124.2,0.08123155]
[1720631221516,0.35550345,3124.4,3123.9,1.184]
[1720631221851,0.35550345,3124.4,3123.9,2.23847297]
[1720631222046,0.35550345,3124.4,3124.0,0.08134375]
[1720631225356,0.35550345,3124.4,3124.0,1.26534375]
[1720631225650,0.35550345,3124.4,3124.2,1.184]
[1720631226044,0.35550345,3124.4,3124.3,0.08113433]
[1720631226349,0.35550345,3124.4,3124.2,1.184]
[1720631226558,0.35550345,3124.4,3124.3,0.08113433]
[1720631226854,0.35550345,3124.4,3124.2,1.184]
[1720631227155,0.35550345,3124.4,3124.3,0.08113433]
[1720631227359,0.65335436,3124.4,3124.3,0.08113433]
[1720631227559,1.43424742,3124.4,3123.8,3.0]
[1720631227714,0.35550345,3124.3,3123.8,3.0]
[1720631227914,0.35550345,3124.2,3123.8,3.0]
[1720631228148,0.35550345,3124.1,3123.8,3.0]
[1720631228347,2.62300563,3124.5,3123.9,1.184]
[1720631228348,0.35550345,3124.0,3123.9,1.184]
[1720631229154,0.35550345,3124.0,3123.8,4.05447297]
[1720631229332,0.33522278,3124.2,3123.9,1.184]
[1720631229664,0.27227447,3124.1,3123.9,1.184]
[1720631229860,0.27227447,3124.0,3123.9,1.184]
[1720631230381,0.27227447,3124.0,3123.9,2.34392027]
[1720631230729,0.33522278,3124.2,3123.9,2.34392027]
[1720631230957,0.27244037,3124.1,3123.9,1.15992027]
[1720631231288,0.33522278,3124.2,3124.0,1.184]
[1720631231435,0.33522278,3124.2,3124.1,0.23439203]
[1720631231633,0.60776304,3124.2,3124.1,0.23439203]
[1720631235163,0.60776304,3124.2,3124.0,1.184]
[1720631235476,0.27254026,3124.1,3124.0,1.184]
[1720631235678,0.27254026,3124.1,3123.9,1.15992027]
[1720631235978,0.27254026,3124.1,3124.0,1.184]
[1720631236702,3.0,3125.2,3124.0,1.184]
[1720631236703,4.6122125,3125.2,3124.1,2.4018]
[1720631236981,5.72964011,3125.7,3125.0,1.184]
[1720631237184,0.78113863,3125.6,3124.4,3.0]
[1720631237390,2.3028,3125.4,3124.5,1.184]
[1720631237611,0.78113863,3125.3,3124.7,1.184]
[1720631238703,2.3028,3125.4,3124.7,1.184]
[1720631238982,0.78108404,3125.3,3124.7,1.184]
[1720631239191,0.78108404,3125.3,3124.5,1.184]
[1720631239498,2.4428,3125.1,3124.3,6.36072972]
[1720631239858,0.78082864,3125.0,3124.3,6.36072972]
[1720631240646,0.78082864,3125.0,3124.4,0.08094506]
[1720631241386,0.33519119,3125.2,3124.4,0.08094506]
[1720631241592,0.33519119,3125.2,3124.4,3.14494028]
[1720631241745,0.33519119,3125.2,3124.5,3.418567]
[1720631241951,0.33519119,3125.2,3124.5,3.49945597]
[1720631243461,0.33519119,3125.2,3124.6,3.0]
[1720631243667,2.32358907,3126.2,3124.8,2.84]
[1720631243668,2.4564,3126.2,3124.8,2.84]
[1720631243906,0.78025645,3126.1,3124.9,3.604029]
[1720631244100,2.79158035,3126.2,3124.9,3.68469366]
[1720631245204,2.79158035,3126.2,3124.9,3.74867741]
[1720631245568,2.79158035,3126.2,3125.0,2.3918]
[1720631245807,2.79158035,3126.2,3125.1,0.06398052]
[1720631246114,2.79158035,3126.2,3125.2,0.24557805]
[1720631246329,2.79158035,3126.2,3125.2,0.32607451]
[1720631247028,0.33518035,3126.2,3125.2,0.32607451]
[1720631247473,0.33518035,3126.2,3125.2,0.39005378]
[1720631247678,0.33518035,3126.2,3125.2,0.32607451]
[1720631247882,0.33518035,3126.2,3125.3,1.28866642]
[1720631248086,0.33518035,3126.2,3125.3,1.36887968]
[1720631248824,2.4887,3126.5,3125.4,2.2994]
[1720631248995,2.4887,3126.5,3125.4,5.2994]
[1720631249184,2.4887,3126.5,3125.5,0.08010116]
[1720631249526,2.4887,3126.5,3125.6,0.53795012]
[1720631249689,2.4887,3126.5,3125.6,0.61799523]
[1720631252718,0.33511394,3127.1,3126.2,3.07970889]
[1720631252890,2.3619,3127.4,3126.2,3.07970889]
[1720631253094,2.3619,3127.4,3126.3,0.69181441]
[1720631253335,2.3619,3127.4,3126.3,0.70750976]
[1720631256524,2.67533418,3127.8,3126.4,2.4395]
[1720631256709,2.67533418,3127.8,3126.4,5.51909685]
[1720631257932,2.67533418,3127.8,3126.4,11.87982657]
[1720631258086,2.67533418,3127.8,3126.5,1.25716404]
[1720631258437,2.67533418,3127.8,3126.5,4.33670487]
[1720631263497,3.00923839,3127.8,3126.5,0.07954083]
[1720631263743,2.4052,3127.6,3126.5,0.07954083]
[1720631267355,2.4052,3127.6,3126.6,2.2615]
[1720631267513,2.4052,3127.6,3126.6,2.3378361]
[1720631270452,2.4052,3127.6,3126.6,2.40179824]
[1720631270679,2.67911042,3127.6,3126.6,2.40179824]
[1720631270965,2.4052,3127.6,3126.6,2.40179824]
[1720631272722,1.181,3127.5,3126.6,2.40179824]
[1720631273430,4.181,3127.7,3126.6,2.40179824]
[1720631273783,1.181,3127.7,3126.7,1.181]
[1720631273928,0.33390421,3127.8,3126.9,1.181]
[1720631274120,1.181,3127.9,3127.0,0.36704]
[1720631274325,1.181,3127.9,3127.1,0.07607559]
[1720631274626,2.483,3128.0,3127.1,0.07607559]
[1720631275037,2.483,3128.0,3127.0,0.36704]
[1720631275365,2.483,3128.0,3127.1,0.07603859]
[1720631275565,3.7949,3128.0,3127.0,0.36704]
[1720631275862,3.7949,3128.0,3127.1,0.07603859]
[1720631276246,3.7949,3128.0,3127.0,0.36704]
[1720631276567,3.7949,3128.0,3127.1,0.07603859]
[1720631276748,3.7949,3128.0,3127.0,0.36704]
[1720631277074,3.0,3128.1,3127.2,2.2625]
[1720631277928,7.636,3128.2,3127.2,2.2625]
[1720631278167,7.636,3128.2,3127.3,0.07589741]
[1720631278755,3.196,3128.2,3127.3,0.07589741]
[1720631280528,3.196,3128.2,3127.3,0.13983956]
[1720631280729,3.196,3128.2,3127.4,0.24023396]
[1720631280930,2.4079,3128.3,3127.5,0.07572314]
[1720631281482,0.33370478,3128.2,3127.6,0.07566717]
[1720631281625,2.4079,3128.0,3127.6,0.07566717]
[1720631281829,2.4079,3128.0,3127.0,6.36072972]
[1720631282066,2.4079,3128.0,3127.7,0.07562093]
[1720631282067,0.74034415,3127.9,3127.7,0.07562093]
[1720631282226,0.16109049,3127.8,3127.0,6.36072972]
[1720631282431,2.99609049,3127.7,3127.0,6.36072972]
[1720631282627,3.16109049,3127.6,3127.0,6.36072972]
[1720631282822,3.57929,3127.9,3127.0,6.36072972]
[1720631283070,0.75982253,3127.8,3127.0,6.36072972]
[1720631283240,0.16110353,3127.7,3127.0,6.36072972]
[1720631283440,0.16110353,3127.6,3127.0,6.36072972]
[1720631283630,0.598719,3127.8,3127.0,6.36072972]
[1720631283984,0.1611215,3127.7,3127.0,6.36072972]
[1720631284263,0.1611215,3127.6,3127.0,6.36072972]
[1720631284476,0.598719,3127.8,3127.0,6.36072972]
[1720631284769,0.52104842,3127.7,3127.0,6.36072972]
[1720631284926,0.16117652,3127.6,3127.0,6.36072972]
[1720631286171,0.16117652,3127.6,3127.1,0.07602691]
[1720631288966,0.3350718,3127.5,3127.1,0.07602691]
[1720631289188,0.16117652,3127.4,3127.1,0.07602691]
[1720631289503,0.16117652,3127.4,3126.8,12.46]
[1720631289713,0.16117652,3127.4,3127.2,0.07594755]
[1720631289995,0.16117652,3127.4,3127.3,0.07589156]
[1720631290162,0.16117652,3127.4,3127.0,2.2938]
[1720631290482,0.16117652,3127.4,3127.1,0.07600354]
[1720631297588,0.16117652,3127.4,3126.7,6.36072972]
[1720631297916,0.16117652,3127.4,3126.8,0.0761988]
[1720631299984,7.94288507,3127.4,3126.8,0.0761988]
[1720631300300,2.32853065,3127.2,3126.8,0.0761988]
[1720631300588,3.16117652,3127.3,3126.7,6.36072972]
[1720631300589,2.48970717,3127.1,3126.7,6.36072972]
[1720631300794,2.3357,3126.9,3126.8,0.06903731]
[1720631300963,2.97941724,3126.9,3126.7,6.36072972]
[1720631301168,0.16117652,3126.8,3126.7,6.36072972]
[1720631301373,0.16117652,3126.8,3126.2,6.36072972]
[1720631304303,0.33511449,3126.7,3126.2,6.36072972]
[1720631304490,0.16117652,3126.6,3126.2,6.36072972]
[1720631304801,0.16117652,3126.6,3126.2,7.24522269]
[1720631305498,0.16117652,3126.6,3126.2,0.88449297]
[1720631305700,0.16117652,3126.6,3126.0,2.4842]
[1720631315903,0.16117652,3126.6,3126.1,0.06965054]
[1720631317928,0.33511449,3126.7,3126.1,0.06965054]
[1720631318104,0.16137158,3126.6,3126.1,0.06965054]
[1720631318301,0.33511449,3126.7,3126.1,0.06965054]
[1720631318521,0.16137125,3126.6,3126.2,0.25538505]
[1720631318688,0.33511449,3126.7,3126.2,0.25538505]
[1720631319022,0.16137113,3126.6,3126.3,0.06953848]
[1720631319192,0.33511449,3126.7,3126.2,0.25538505]
[1720631319394,0.16135275,3126.6,3126.3,0.06953848]
[1720631319722,0.16135275,3126.5,3126.2,0.25538505]
[1720631319923,0.33511449,3126.7,3126.4,0.06948247]
[1720631320129,0.33511449,3126.7,3126.3,0.06953848]
[1720631320130,0.16134005,3126.6,3126.3,0.06953848]
[1720631320440,0.161353,3126.5,3126.4,0.06948247]
[1720631320829,0.161353,3126.5,3126.2,0.25538505]
[1720631321147,0.33511449,3126.7,3126.3,0.06953848]
[1720631321312,0.1613448,3126.6,3126.2,0.25538505]
[1720631321514,0.1613448,3126.5,3126.2,0.25538505]
[1720631321756,0.33511449,3126.7,3126.3,0.06953848]
[1720631321915,0.16133386,3126.6,3126.2,0.25538505]
[1720631322115,0.16133386,3126.5,3126.2,0.25538505]
[1720631322416,0.16133675,3126.4,3126.3,0.06953848]
[1720631322615,0.33511449,3126.7,3126.2,0.25538505]
[1720631322815,0.16133645,3126.6,3126.3,0.06947835]
[1720631323106,0.16133645,3126.5,3126.2,0.25538505]
[1720631323241,1.51711449,3126.7,3126.4,0.06942233]
[1720631323439,0.16131986,3126.6,3126.3,0.06947835]
[1720631323682,0.16131986,3126.5,3126.0,2.4842]
[1720631323910,1.51711449,3126.7,3126.0,2.4842]
[1720631324046,0.16130079,3126.6,3126.0,2.4842]
[1720631324246,0.16130079,3126.5,3125.8,6.36072972]
[1720631324544,0.16130079,3126.4,3125.9,0.99622297]
[1720631324744,1.51711449,3126.7,3125.9,0.99622297]
[1720631324958,0.16125361,3126.6,3125.9,0.99622297]
[1720631325157,0.16125361,3126.5,3125.9,3.99622297]
[1720631325980,0.16125361,3126.5,3125.9,0.99622297]
[1720631326183,0.16125361,3126.5,3126.0,0.73569527]
[1720631327498,0.16125361,3126.5,3126.1,2.54706744]
[1720631327804,0.33511947,3126.6,3126.5,2.4831]
[1720631327962,0.33511947,3126.6,3126.5,5.4831]
[1720631328162,0.33511947,3126.6,3126.5,6.14961]
[1720631328464,0.33511947,3126.6,3126.5,3.14961]
[1720631329445,0.33511947,3126.6,3126.5,0.66651]
[1720631329791,0.33511947,3126.6,3126.4,1.182]
[1720631330394,0.33511947,3126.6,3126.3,3.0]
[1720631330795,0.33511947,3126.6,3126.4,0.06932536]
[1720631332389,0.33511947,3126.6,3126.2,2.283]
[1720631332592,0.33511947,3126.6,3126.3,0.06938526]
[1720631332805,0.33511947,3126.6,3126.4,0.23523853]
[1720631333176,0.33511947,3126.6,3126.5,0.06927323]
[1720631336662,2.4889,3127.7,3126.5,3.50777323]
[1720631336857,0.3351357,3127.0,3126.9,1.182]
[1720631337099,2.4889,3127.7,3126.9,1.182]
[1720631337295,0.16126735,3127.6,3126.9,1.25099101]
[1720631337465,0.16126735,3127.5,3126.9,1.25099101]
[1720631337797,0.33513037,3127.6,3127.0,0.4250991]
[1720631337999,0.16125656,3127.5,3127.1,0.06884605]
[1720631338157,0.33513037,3127.6,3127.1,0.06884605]
[1720631338497,0.16126677,3127.5,3127.1,0.06884605]
[1720631338670,0.33513037,3127.6,3127.1,0.06884605]
[1720631338876,0.16128378,3127.5,3127.1,0.06884605]
[1720631339060,0.33513037,3127.6,3127.1,0.06884605]
[1720631339262,0.16128402,3127.5,3127.1,0.06884605]
[1720631339473,0.33513037,3127.6,3127.2,0.2350546]
[1720631339793,0.33513037,3127.6,3127.2,0.30378262]
[1720631339980,0.16128578,3127.5,3127.3,0.06394729]
[1720631340194,0.33513037,3127.6,3127.4,0.06861604]
[1720631340378,0.33513037,3127.6,3127.2,0.2350546]
[1720631340561,2.4911,3128.3,3127.3,0.06867203]
[1720631340785,0.72938817,3128.2,3127.3,0.06867203]
[1720631340995,0.3350895,3128.0,3127.3,0.06867203]
[1720631341303,0.16127817,3127.9,3127.3,0.06867203]
[1720631341598,0.16127817,3127.8,3127.3,0.06867203]
[1720631341762,0.3350895,3128.0,3127.2,0.2350546]
[1720631342097,0.3350895,3128.0,3127.3,0.39214841]
[1720631342098,0.16126487,3127.9,3127.3,0.39214841]
[1720631342306,0.16126487,3127.8,3127.3,0.39214841]
[1720631342480,0.16126487,3127.7,3127.3,0.39214841]
[1720631342811,0.3350895,3128.0,3127.3,0.39214841]
[1720631343099,0.1611952,3127.9,3127.3,0.06864295]
[1720631343315,0.1611952,3127.8,3127.3,0.06864295]
[1720631343465,0.16118227,3127.7,3127.0,2.2817]
[1720631343665,2.2516,3127.9,3127.4,0.06853076]
[1720631343865,0.41983386,3127.8,3127.0,2.2817]
[1720631344067,0.16116491,3127.7,3127.5,0.06847478]
[1720631344266,2.2516,3127.9,3127.0,2.2817]
[1720631344500,0.16109335,3127.8,3127.6,0.0684188]
[1720631344676,2.2516,3127.9,3127.0,8.64242972]
[1720631344677,0.16109335,3127.7,3127.0,8.64242972]
[1720631344875,2.2516,3127.9,3127.1,3.0]
[1720631345106,0.1611526,3127.8,3127.1,3.06869872]
[1720631345305,2.51026895,3127.9,3127.1,3.06869872]
[1720631345466,0.1611235,3127.8,3127.1,3.06869872]
[1720631345673,2.51026895,3127.9,3127.1,3.06869872]
[1720631345880,0.16110275,3127.8,3127.1,0.06869872]
[1720631346234,0.42823992,3127.7,3127.1,0.06869872]
[1720631346407,0.16110275,3127.6,3127.1,0.06869872]
[1720631346718,0.26713717,3127.7,3127.1,0.06869872]
[1720631346916,0.1610729,3127.6,3127.1,0.06869872]
[1720631347419,2.2516,3127.9,3127.1,0.06869872]
[1720631347580,0.16111222,3127.8,3127.1,0.06869872]
[1720631347780,0.16111222,3127.7,3127.1,0.06869872]
[1720631347977,2.2516,3127.9,3127.1,0.06869872]
[1720631348202,0.1610951,3127.8,3127.1,0.06869872]
[1720631348407,2.2516,3127.9,3127.1,0.06869872]
[1720631348629,0.1610963,3127.8,3127.1,0.06869872]
[1720631348828,2.51026895,3127.9,3127.1,0.06869872]
[1720631349027,0.16107463,3127.8,3127.1,0.06869872]
[1720631349207,2.51026895,3127.9,3127.1,0.06869872]
[1720631349530,0.16102575,3127.8,3127.1,0.06869872]
[1720631349725,0.26712947,3127.7,3127.1,0.06869872]
[1720631354244,2.2516,3127.9,3127.1,0.06869872]
[1720631354407,0.16096908,3127.8,3127.1,0.06869872]
[1720631354601,2.2516,3127.9,3127.1,0.06869872]
[1720631354797,0.16096391,3127.8,3127.1,0.06869872]
[1720631355002,2.2516,3127.9,3127.1,0.06869872]
[1720631355238,0.41962484,3127.8,3127.1,0.06869872]
[1720631355428,0.25866895,3127.8,3127.1,0.06869872]
[1720631357717,0.16099277,3127.7,3127.1,0.06869872]
[1720631358039,0.25866895,3127.8,3127.1,0.06869872]
[1720631358239,0.16099581,3127.7,3127.1,0.06869872]
[1720631358435,0.33510765,3127.6,3127.1,0.06869872]
[1720631361564,0.51258531,3127.6,3127.1,0.06869872]
[1720631363143,1.181,3127.2,3127.1,0.06869872]
[1720631363464,3.6019,3127.2,3127.1,0.06869872]
[1720631363664,4.3818895,3127.2,3127.1,0.06869872]
[1720631363868,4.54278181,3127.2,3127.1,0.06869872]
[1720631364072,7.3818895,3127.2,3127.1,0.06869872]
[1720631364376,8.8309643,3127.2,3127.1,0.06869872]
[1720631364570,10.4869643,3127.2,3127.1,0.06869872]
[1720631365441,9.7069748,3127.2,3127.1,0.06869872]
[1720631365676,10.48699754,3127.2,3127.1,0.06869872]
[1720631368290,10.48699754,3127.2,3126.6,6.36072972]
[1720631368490,2.53960834,3127.1,3126.3,6.36072972]
[1720631368696,0.94090859,3127.0,3126.3,6.36072972]
[1720631368989,1.59869975,3127.1,3126.3,6.36072972]
[1720631369170,0.94103052,3127.0,3126.3,6.36072972]
[1720631369369,0.25397303,3126.9,3126.3,6.36072972]
[1720631369567,2.3427,3126.8,3126.3,6.36072972]
[1720631371499,2.3427,3126.6,3126.3,6.36072972]
[1720631371702,5.3427,3126.6,3126.3,6.36072972]
[1720631372057,3.14574019,3126.5,3125.2,2.4925]
[1720631372259,2.837,3126.3,3125.2,2.4925]
[1720631372464,2.3657,3126.2,3125.2,2.4925]
[1720631373207,2.3657,3126.2,3124.5,2.3396]
[1720631373418,2.69918935,3126.2,3124.5,2.3396]
[1720631375379,2.837,3125.9,3124.5,2.3396]
[1720631375573,5.5338,3125.8,3124.5,2.3396]
[1720631376580,2.8783,3125.7,3123.6,2.4585]
[1720631376887,2.431,3125.4,3123.7,0.06388432]
[1720631377213,2.837,3125.1,3123.7,0.31612275]
[1720631378081,2.3637,3125.0,3123.7,3.31612275]
[1720631378704,2.3637,3125.0,3123.7,0.31612275]
[1720631379975,2.3637,3125.0,3123.7,3.31612275]
[1720631380178,0.52007,3124.9,3123.8,0.57746228]
[1720631380683,0.52007,3124.9,3123.9,0.06377209]
[1720631382124,2.3637,3125.0,3123.9,0.1277851]
[1720631382425,2.3637,3125.0,3124.0,0.06400986]
[1720631382607,2.3637,3125.0,3123.9,0.06377209]
[1720631382812,2.3637,3125.0,3124.0,0.05461296]
[1720631382986,2.3637,3125.0,3123.8,7.00220186]
[1720631383193,2.3637,3125.0,3123.9,1.0801131]
[1720631383808,2.3637,3125.0,3124.0,0.06400705]
[1720631384020,2.3637,3125.0,3123.9,1.0801131]
[1720631384311,2.3637,3125.0,3124.0,0.05461296]
[1720631384884,2.69725258,3125.0,3124.0,0.05461296]
[1720631385225,0.55342526,3124.9,3124.0,0.05461296]
[1720631389026,0.33507956,3124.8,3124.0,0.05461296]
[1720631391344,2.292,3124.7,3123.8,6.938192]
[1720631391540,2.292,3124.7,3124.1,0.05455686]
[1720631391746,2.292,3124.7,3123.8,6.938192]
[1720631391943,2.292,3124.7,3124.2,0.05450076]
[1720631392148,0.33507956,3124.8,3124.1,2.4505]
[1720631392364,0.33507956,3124.8,3124.3,0.05444467]
[1720631392563,0.33507956,3124.8,3124.2,0.06400158]
[1720631392564,0.33507956,3124.8,3124.2,0.11889241]
[1720631392848,0.33507956,3124.8,3124.4,0.05477865]
[1720631393055,0.61386752,3124.8,3124.5,0.05472256]
[1720631393266,0.61386752,3124.8,3123.8,6.36072972]
[1720631393553,0.33507956,3124.8,3123.9,0.05505525]
[1720631394721,2.4391,3124.7,3123.9,0.05505525]
[1720631398717,2.4391,3124.7,3123.9,0.1190674]
[1720631399146,2.4391,3124.7,3123.9,0.1190625]
[1720631399348,0.33507956,3124.8,3123.9,0.05505525]
[1720631399659,0.33507956,3124.8,3124.0,0.6415785]
[1720631399852,0.33507956,3124.8,3124.1,0.05497023]
[1720631400220,0.33507956,3124.8,3124.1,2.51467463]
[1720631400463,0.33507956,3124.8,3124.2,0.06400275]
[1720631400615,0.33507956,3124.8,3124.3,0.0530283]
[1720631400822,0.33507956,3124.8,3124.3,0.25127311]
[1720631401051,0.33507956,3124.8,3124.4,0.05294308]
[1720631403260,0.33507956,3124.8,3124.0,0.6415785]
[1720631403688,0.33507956,3124.8,3124.1,0.05306865]
[1720631405443,0.33507956,3124.8,3123.8,2.384]
[1720631405658,0.33507956,3124.8,3123.9,0.29159056]
[1720631407578,0.33507956,3124.8,3124.0,0.06400222]
[1720631407780,0.33507956,3124.8,3124.1,2.2894]
[1720631408079,0.33507956,3124.8,3124.1,2.34251137]
[1720631408676,0.33507956,3124.8,3124.1,0.05311137]
[1720631408876,0.33507956,3124.8,3123.7,3.0]
[1720631409082,0.33507956,3124.8,3123.8,0.58219638]
[1720631409276,0.33507956,3124.8,3123.8,0.05325638]
[1720631409589,0.33507956,3124.8,3123.8,0.11726678]
[1720631409776,0.33507956,3124.8,3123.8,0.05325638]
[1720631410160,0.33507956,3124.8,3123.9,2.2894]
[1720631410363,0.33507956,3124.8,3124.0,0.06400967]
[1720631411410,2.3437,3124.7,3123.6,2.4451]
[1720631411627,2.3437,3124.7,3123.7,0.05331249]
[1720631413804,2.3437,3124.7,3123.7,0.11732074]
[1720631414005,2.3437,3124.7,3123.8,0.25624207]
[1720631414233,2.3437,3124.7,3123.9,0.06400817]
[1720631414449,2.3437,3124.7,3123.9,0.11729385]
[1720631415238,2.3437,3124.7,3123.9,0.05328568]
[1720631416429,0.33507956,3124.8,3123.9,0.05328568]
[1720631416602,0.33507956,3124.8,3123.9,0.45464763]
[1720631416801,0.33507956,3124.8,3124.0,2.2662]
[1720631417258,0.33507956,3124.8,3124.1,0.05317348]
[1720631418358,0.33507956,3124.8,3124.3,2.2739]
[1720631418748,0.33507956,3124.8,3124.4,0.05297606]
[1720631418950,0.33507956,3124.8,3124.5,0.23268761]
[1720631419149,0.33507956,3124.8,3124.5,0.28560758]
[1720631421219,0.33507956,3124.8,3124.6,2.4358]
[1720631421421,3.19,3126.2,3124.6,2.4358]
[1720631421422,0.7804339,3125.7,3124.7,2.4358]
[1720631421762,0.3350898,3126.0,3124.8,2.97118]
[1720631422221,0.3350898,3126.0,3124.9,3.052618]
[1720631422421,0.3350898,3126.0,3125.0,2.4276]
[1720631422622,0.3350898,3126.0,3125.1,0.05250586]
[1720631423858,2.3582,3125.9,3125.1,0.05250586]
[1720631424235,2.62752898,3125.9,3125.1,0.05250586]
[1720631424524,2.62752898,3125.9,3124.0,2.464]
[1720631424525,2.4924,3125.3,3124.0,2.464]
[1720631424750,0.78043534,3125.2,3124.0,2.464]
[1720631426418,5.3294,3125.3,3124.0,2.464]
[1720631426419,0.78047449,3125.1,3124.0,2.464]
[1720631426623,5.3294,3125.3,3124.0,2.464]
[1720631426859,1.31338025,3125.2,3124.0,2.464]
[1720631427028,0.78044165,3125.1,3124.0,2.464]
[1720631427622,2.4812,3125.0,3123.7,2.4281]
[1720631433474,2.4812,3125.0,3123.4,2.4388]
[1720631433674,2.4412,3124.8,3123.4,2.4388]
[1720631433883,2.4412,3124.8,3123.5,0.24388]
[1720631434066,2.4412,3124.8,3123.5,3.24388]
[1720631434853,2.4412,3124.8,3123.6,3.046]